[Event "Titled Tuesday Blitz June 6 Late 2023"]
[White "Domingo Nunez, Alejandro"]
[Black "i_like_explosions"]
[WhiteFideId "22245561"]
[WhiteElo "2291"]
[BlackElo "2474"]
[Result "1-0"]
[Round "6"]
[TimeControl "180+2"]
[Date "2023.06.07"]
[WhiteClock "0:00:48"]
[BlackClock "0:00:21"]
[Board "74"]

1. Nf3 {[%clk 0:03:00]}  Nf6 {[%clk 0:03:00]} 2. g3 {[%clk 0:03:01]}  g6 {[%clk 0:03:00]} 3. b3 {[%clk 0:03:01]}  Bg7 {[%clk 0:03:00]} 4. Bb2 {[%clk 0:03:02]}  d6 {[%clk 0:03:00]} 5. d4 {[%clk 0:03:02]}  O-O {[%clk 0:03:01]} 6. Bg2 {[%clk 0:03:02]}  Nbd7 {[%clk 0:02:59]} 7. O-O {[%clk 0:03:03]}  c5 {[%clk 0:02:59]} 8. c4 {[%clk 0:03:02]}  a6 {[%clk 0:02:56]} 9. Nc3 {[%clk 0:02:48]}  Rb8 {[%clk 0:02:56]} 10. a4 {[%clk 0:02:46]}  b6 {[%clk 0:02:51]} 11. Qc2 {[%clk 0:02:33]}  Bb7 {[%clk 0:02:50]} 12. Rad1 {[%clk 0:02:31]}  Qc7 {[%clk 0:02:46]} 13. d5 {[%clk 0:02:30]}  Bc8 {[%clk 0:02:37]} 14. e4 {[%clk 0:02:30]}  e5 {[%clk 0:02:28]} 15. dxe6 {[%clk 0:01:58]}  fxe6 {[%clk 0:02:29]} 16. Qd2 {[%clk 0:01:34]}  Ne8 {[%clk 0:02:27]} 17. Ng5 {[%clk 0:01:33]}  Ne5 {[%clk 0:02:23]} 18. f4 {[%clk 0:01:24]}  Nc6 {[%clk 0:02:20]} 19. Bh3 {[%clk 0:01:18]}  Nd4 {[%clk 0:02:16]} 20. Ne2 {[%clk 0:01:18]}  Nxe2+ {[%clk 0:01:32]} 21. Qxe2 {[%clk 0:01:18]}  Qe7 {[%clk 0:01:11]} 22. e5 {[%clk 0:01:00]}  h6 {[%clk 0:00:43]} 23. exd6 {[%clk 0:00:59]}  Nxd6 {[%clk 0:00:43]} 24. Bxg7 {[%clk 0:00:58]}  Kxg7 {[%clk 0:00:39]} 25. Qe5+ {[%clk 0:00:55]}  Kg8 {[%clk 0:00:39]} 26. Nxe6 {[%clk 0:00:52]}  Bxe6 {[%clk 0:00:35]} 27. Rxd6 {[%clk 0:00:50]}  Rbe8 {[%clk 0:00:21]} 28. Bxe6+ {[%clk 0:00:48]} 1-0


[Site "https://www.chess.com"]

[Event "Titled Tuesday Blitz June 6 Late 2023"]
[White "Shohat, Yotam"]
[Black "Eidelman, Gabriel"]
[WhiteFideId "2813955"]
[BlackFideId "30910544"]
[WhiteElo "2226"]
[BlackElo "2455"]
[Result "1-0"]
[Round "6"]
[TimeControl "180+2"]
[Date "2023.06.07"]
[WhiteClock "0:00:39"]
[BlackClock "0:00:01"]
[Board "78"]

1. e4 {[%clk 0:03:00]}  c6 {[%clk 0:02:53]} 2. d4 {[%clk 0:02:56]}  d5 {[%clk 0:02:48]} 3. e5 {[%clk 0:02:56]}  Bf5 {[%clk 0:02:49]} 4. Nd2 {[%clk 0:02:54]}  e6 {[%clk 0:02:49]} 5. Nb3 {[%clk 0:02:53]}  Nd7 {[%clk 0:02:45]} 6. Nf3 {[%clk 0:02:47]}  a6 {[%clk 0:02:42]} 7. Be2 {[%clk 0:02:47]}  c5 {[%clk 0:02:42]} 8. c3 {[%clk 0:02:47]}  Ne7 {[%clk 0:02:23]} 9. Be3 {[%clk 0:02:46]}  Nc6 {[%clk 0:02:18]} 10. O-O {[%clk 0:02:38]}  c4 {[%clk 0:02:12]} 11. Nbd2 {[%clk 0:02:36]}  Be7 {[%clk 0:02:11]} 12. Re1 {[%clk 0:02:36]}  O-O {[%clk 0:02:11]} 13. Nf1 {[%clk 0:02:36]}  b5 {[%clk 0:02:08]} 14. Ng3 {[%clk 0:02:36]}  Bg6 {[%clk 0:02:09]} 15. a3 {[%clk 0:02:30]}  a5 {[%clk 0:02:08]} 16. Qd2 {[%clk 0:02:14]}  b4 {[%clk 0:02:05]} 17. axb4 {[%clk 0:02:14]}  axb4 {[%clk 0:02:06]} 18. h4 {[%clk 0:02:15]}  Rxa1 {[%clk 0:01:31]} 19. Rxa1 {[%clk 0:02:14]}  bxc3 {[%clk 0:01:31]} 20. bxc3 {[%clk 0:02:13]}  Na5 {[%clk 0:01:26]} 21. Bd1 {[%clk 0:02:00]}  Qb6 {[%clk 0:01:18]} 22. h5 {[%clk 0:01:57]}  Bd3 {[%clk 0:01:19]} 23. Ne1 {[%clk 0:01:56]}  Nb3 {[%clk 0:01:11]} 24. Bxb3 {[%clk 0:01:55]}  Qxb3 {[%clk 0:01:12]} 25. Nxd3 {[%clk 0:01:52]}  cxd3 {[%clk 0:01:13]} 26. Qxd3 {[%clk 0:01:51]}  Nb6 {[%clk 0:00:52]} 27. h6 {[%clk 0:01:26]}  g6 {[%clk 0:00:51]} 28. Rb1 {[%clk 0:01:16]}  Qc4 {[%clk 0:00:51]} 29. Qxc4 {[%clk 0:01:07]}  Nxc4 {[%clk 0:00:51]} 30. Bc1 {[%clk 0:01:08]}  Ba3 {[%clk 0:00:48]} 31. Ne2 {[%clk 0:01:04]}  Bxc1 {[%clk 0:00:46]} 32. Nxc1 {[%clk 0:01:05]}  Ra8 {[%clk 0:00:41]} 33. Nd3 {[%clk 0:01:03]}  g5 {[%clk 0:00:24]} 34. Nc5 {[%clk 0:01:03]}  Re8 {[%clk 0:00:16]} 35. Nd7 {[%clk 0:01:02]}  Rc8 {[%clk 0:00:08]} 36. Rd1 {[%clk 0:00:52]}  Rc7 {[%clk 0:00:04]} 37. Nf6+ {[%clk 0:00:51]}  Kh8 {[%clk 0:00:03]} 38. Rd3 {[%clk 0:00:50]}  Nb6 {[%clk 0:00:01]} 39. Rg3 {[%clk 0:00:46]}  Nd7 {[%clk 0:00:01]} 40. Ne8 {[%clk 0:00:39]} 1-0


[Site "https://www.chess.com"]

[Event "Titled Tuesday Blitz June 6 Late 2023"]
[White "Kashtanov, Ruslan"]
[Black "Safin, Robert"]
[WhiteFideId "4124871"]
[BlackFideId "34189120"]
[WhiteElo "2263"]
[BlackElo "2341"]
[Result "1-0"]
[Round "6"]
[TimeControl "180+2"]
[Date "2023.06.07"]
[WhiteClock "0:00:47"]
[BlackClock "0:01:35"]
[Board "80"]

1. d4 {[%clk 0:02:54]}  Nf6 {[%clk 0:02:58]} 2. c4 {[%clk 0:02:54]}  e6 {[%clk 0:02:58]} 3. g3 {[%clk 0:02:55]}  d5 {[%clk 0:02:58]} 4. Bg2 {[%clk 0:02:55]}  Be7 {[%clk 0:02:58]} 5. Nf3 {[%clk 0:02:55]}  O-O {[%clk 0:02:59]} 6. O-O {[%clk 0:02:55]}  dxc4 {[%clk 0:02:59]} 7. Qa4 {[%clk 0:02:55]}  a6 {[%clk 0:02:58]} 8. Qxc4 {[%clk 0:02:55]}  b5 {[%clk 0:02:57]} 9. Qc2 {[%clk 0:02:55]}  Bb7 {[%clk 0:02:58]} 10. Bf4 {[%clk 0:02:56]}  Bd6 {[%clk 0:02:52]} 11. Bg5 {[%clk 0:02:44]}  Nbd7 {[%clk 0:02:49]} 12. Nbd2 {[%clk 0:02:43]}  c5 {[%clk 0:02:46]} 13. dxc5 {[%clk 0:02:37]}  Nxc5 {[%clk 0:02:47]} 14. Rfd1 {[%clk 0:02:31]}  Qe7 {[%clk 0:02:43]} 15. Rac1 {[%clk 0:01:58]}  Rac8 {[%clk 0:02:42]} 16. Qb1 {[%clk 0:01:58]}  Rfd8 {[%clk 0:02:37]} 17. h3 {[%clk 0:01:45]}  h6 {[%clk 0:02:35]} 18. Be3 {[%clk 0:01:44]}  Nd5 {[%clk 0:02:24]} 19. Bd4 {[%clk 0:01:32]}  e5 {[%clk 0:02:24]} 20. Bxc5 {[%clk 0:01:17]}  Bxc5 {[%clk 0:02:24]} 21. Qf5 {[%clk 0:01:14]}  f6 {[%clk 0:02:16]} 22. Nh4 {[%clk 0:01:11]}  Ba8 {[%clk 0:01:55]} 23. Be4 {[%clk 0:00:56]}  Bxf2+ {[%clk 0:01:35]} 24. Qxf2 {[%clk 0:00:47]} 1-0


[Site "https://www.chess.com"]

[Event "Titled Tuesday Blitz June 6 Late 2023"]
[White "Dedona, Mark"]
[Black "Moral Garcia, Serafin"]
[WhiteFideId "30920256"]
[BlackFideId "2201925"]
[WhiteElo "2074"]
[BlackElo "2274"]
[Result "0-1"]
[Round "6"]
[TimeControl "180+2"]
[Date "2023.06.07"]
[WhiteClock "0:00:14"]
[BlackClock "0:00:13"]
[Board "83"]

1. e4 {[%clk 0:02:55]}  c5 {[%clk 0:02:58]} 2. b3 {[%clk 0:02:54]}  g6 {[%clk 0:02:57]} 3. Bb2 {[%clk 0:02:54]}  Nf6 {[%clk 0:02:57]} 4. e5 {[%clk 0:02:55]}  Nd5 {[%clk 0:02:57]} 5. Nc3 {[%clk 0:02:56]}  Nxc3 {[%clk 0:02:55]} 6. dxc3 {[%clk 0:02:57]}  Bg7 {[%clk 0:02:55]} 7. Qd5 {[%clk 0:02:57]}  Qc7 {[%clk 0:02:52]} 8. f4 {[%clk 0:02:57]}  O-O {[%clk 0:02:49]} 9. O-O-O {[%clk 0:02:56]}  Kh8 {[%clk 0:02:42]} 10. h4 {[%clk 0:02:54]}  e6 {[%clk 0:02:34]} 11. Qe4 {[%clk 0:02:50]}  f5 {[%clk 0:02:30]} 12. Qe3 {[%clk 0:02:46]}  b6 {[%clk 0:02:25]} 13. h5 {[%clk 0:02:46]}  Kg8 {[%clk 0:02:25]} 14. Nf3 {[%clk 0:02:45]}  Bb7 {[%clk 0:02:01]} 15. hxg6 {[%clk 0:02:44]}  h6 {[%clk 0:01:58]} 16. Bd3 {[%clk 0:02:32]}  Nc6 {[%clk 0:01:54]} 17. Rhg1 {[%clk 0:02:31]}  Ne7 {[%clk 0:01:54]} 18. g4 {[%clk 0:02:30]}  Nd5 {[%clk 0:01:43]} 19. Qd2 {[%clk 0:02:23]}  fxg4 {[%clk 0:01:37]} 20. Rxg4 {[%clk 0:02:21]}  Nxf4 {[%clk 0:01:26]} 21. Rxf4 {[%clk 0:02:16]}  Rxf4 {[%clk 0:01:25]} 22. Qxf4 {[%clk 0:02:15]}  Rf8 {[%clk 0:01:24]} 23. Qh4 {[%clk 0:02:01]}  Bxf3 {[%clk 0:01:19]} 24. Re1 {[%clk 0:02:00]}  Qd8 {[%clk 0:01:13]} 25. Qxd8 {[%clk 0:01:54]}  Rxd8 {[%clk 0:01:12]} 26. c4 {[%clk 0:01:54]}  Rf8 {[%clk 0:01:08]} 27. Kd2 {[%clk 0:01:53]}  Bc6 {[%clk 0:01:05]} 28. a3 {[%clk 0:01:28]}  h5 {[%clk 0:01:03]} 29. b4 {[%clk 0:01:24]}  h4 {[%clk 0:01:02]} 30. Be4 {[%clk 0:01:24]}  Rf4 {[%clk 0:00:39]} 31. Bxc6 {[%clk 0:01:11]}  dxc6 {[%clk 0:00:39]} 32. Ke3 {[%clk 0:01:12]}  Rxc4 {[%clk 0:00:38]} 33. Rd1 {[%clk 0:01:11]}  h3 {[%clk 0:00:28]} 34. Kd3 {[%clk 0:00:53]}  Rh4 {[%clk 0:00:27]} 35. bxc5 {[%clk 0:00:50]}  bxc5 {[%clk 0:00:27]} 36. Rh1 {[%clk 0:00:50]}  h2 {[%clk 0:00:25]} 37. a4 {[%clk 0:00:43]}  Bh6 {[%clk 0:00:25]} 38. Ba3 {[%clk 0:00:38]}  c4+ {[%clk 0:00:22]} 39. Kc3 {[%clk 0:00:37]}  Bf4 {[%clk 0:00:22]} 40. Bc5 {[%clk 0:00:32]}  Bxe5+ {[%clk 0:00:21]} 41. Kb4 {[%clk 0:00:32]}  Kg7 {[%clk 0:00:20]} 42. Bxa7 {[%clk 0:00:31]}  c3+ {[%clk 0:00:19]} 43. Kb3 {[%clk 0:00:31]}  Kxg6 {[%clk 0:00:19]} 44. a5 {[%clk 0:00:31]}  Rh8 {[%clk 0:00:17]} 45. Bb6 {[%clk 0:00:30]}  Kf5 {[%clk 0:00:18]} 46. a6 {[%clk 0:00:30]}  Kg4 {[%clk 0:00:18]} 47. a7 {[%clk 0:00:28]}  Kh3 {[%clk 0:00:18]} 48. Bg1 {[%clk 0:00:25]}  Kg2 {[%clk 0:00:16]} 49. Bxh2 {[%clk 0:00:25]}  Bxh2 {[%clk 0:00:14]} 50. Re1 {[%clk 0:00:21]}  Ra8 {[%clk 0:00:14]} 51. Rxe6 {[%clk 0:00:21]}  Rxa7 {[%clk 0:00:14]} 52. Rxc6 {[%clk 0:00:21]}  Be5 {[%clk 0:00:14]} 53. Re6 {[%clk 0:00:21]}  Bg7 {[%clk 0:00:13]} 54. Rg6+ {[%clk 0:00:21]}  Kf3 {[%clk 0:00:13]} 55. Re6 {[%clk 0:00:22]}  Kf4 {[%clk 0:00:13]} 56. Kc4 {[%clk 0:00:21]}  Be5 {[%clk 0:00:13]} 57. Kd3 {[%clk 0:00:21]}  Rd7+ {[%clk 0:00:13]} 58. Kc4 {[%clk 0:00:21]}  Ke4 {[%clk 0:00:14]} 59. Re8 {[%clk 0:00:22]}  Rd2 {[%clk 0:00:14]} 60. Kb3 {[%clk 0:00:22]}  Rd1 {[%clk 0:00:13]} 61. Re7 {[%clk 0:00:20]}  Rb1+ {[%clk 0:00:13]} 62. Kc4 {[%clk 0:00:21]}  Rb2 {[%clk 0:00:14]} 63. Rh7 {[%clk 0:00:20]}  Rxc2 {[%clk 0:00:14]} 64. Rh4+ {[%clk 0:00:21]}  Kf5 {[%clk 0:00:14]} 65. Kd3 {[%clk 0:00:21]}  Rc1 {[%clk 0:00:14]} 66. Rh5+ {[%clk 0:00:21]}  Ke6 {[%clk 0:00:14]} 67. Rh6+ {[%clk 0:00:21]}  Kd5 {[%clk 0:00:14]} 68. Rh7 {[%clk 0:00:22]}  Rd1+ {[%clk 0:00:14]} 69. Kc2 {[%clk 0:00:22]}  Rd2+ {[%clk 0:00:15]} 70. Kb3 {[%clk 0:00:22]}  Rb2+ {[%clk 0:00:15]} 71. Ka3 {[%clk 0:00:22]}  c2 {[%clk 0:00:15]} 72. Rh4 {[%clk 0:00:14]}  c1=Q {[%clk 0:00:14]} 73. Rc4 {[%clk 0:00:14]}  Kxc4 {[%clk 0:00:13]} 74. Ka4 {[%clk 0:00:14]}  Qa1# {[%clk 0:00:13]} 0-1


[Site "https://www.chess.com"]

[Event "Titled Tuesday Blitz June 6 Late 2023"]
[White "Sairam, Pranav"]
[Black "Krsnik Cohar, Ivan Vihor"]
[WhiteFideId "30951330"]
[BlackFideId "14520044"]
[WhiteElo "1918"]
[BlackElo "2414"]
[Result "0-1"]
[Round "6"]
[TimeControl "180+2"]
[Date "2023.06.07"]
[WhiteClock "0:00:53"]
[BlackClock "0:01:49"]
[Board "86"]

1. e4 {[%clk 0:03:00]}  c5 {[%clk 0:02:57]} 2. Nf3 {[%clk 0:02:58]}  g6 {[%clk 0:02:58]} 3. d4 {[%clk 0:02:56]}  cxd4 {[%clk 0:02:59]} 4. Nxd4 {[%clk 0:02:57]}  Nf6 {[%clk 0:02:59]} 5. Nc3 {[%clk 0:02:56]}  Nc6 {[%clk 0:03:00]} 6. Be3 {[%clk 0:02:55]}  Bg7 {[%clk 0:03:00]} 7. Bc4 {[%clk 0:02:46]}  O-O {[%clk 0:02:59]} 8. O-O {[%clk 0:02:44]}  Nxe4 {[%clk 0:02:59]} 9. Nxc6 {[%clk 0:02:12]}  Nxc3 {[%clk 0:02:47]} 10. Nxd8 {[%clk 0:02:12]}  Nxd1 {[%clk 0:02:47]} 11. Nxf7 {[%clk 0:02:10]}  Nxe3 {[%clk 0:02:40]} 12. fxe3 {[%clk 0:02:09]}  d5 {[%clk 0:02:37]} 13. Bxd5 {[%clk 0:01:38]}  e6 {[%clk 0:02:29]} 14. Nd6 {[%clk 0:01:18]}  exd5 {[%clk 0:02:26]} 15. Rad1 {[%clk 0:01:11]}  Rd8 {[%clk 0:02:09]} 16. Rxd5 {[%clk 0:01:01]}  Bf8 {[%clk 0:02:00]} 17. Rfd1 {[%clk 0:00:54]}  Be6 {[%clk 0:01:50]} 18. Re5 {[%clk 0:00:53]}  Bxd6 {[%clk 0:01:49]} 0-1


[Site "https://www.chess.com"]

[Event "Titled Tuesday Blitz June 6 Late 2023"]
[White "Hajiyev, Kanan"]
[Black "Hoffmann, Asa"]
[WhiteFideId "13404148"]
[BlackFideId "2001470"]
[WhiteElo "2115"]
[BlackElo "2117"]
[Result "1-0"]
[Round "6"]
[TimeControl "180+2"]
[Date "2023.06.07"]
[WhiteClock "0:00:08"]
[BlackClock "0:00:11"]
[Board "87"]

1. d4 {[%clk 0:02:42]}  Nf6 {[%clk 0:02:56]} 2. c4 {[%clk 0:02:41]}  c5 {[%clk 0:02:54]} 3. Nf3 {[%clk 0:02:39]}  cxd4 {[%clk 0:02:51]} 4. Nxd4 {[%clk 0:02:40]}  e5 {[%clk 0:02:50]} 5. Nb5 {[%clk 0:02:39]}  d5 {[%clk 0:02:49]} 6. cxd5 {[%clk 0:02:39]}  Bb4+ {[%clk 0:02:49]} 7. Bd2 {[%clk 0:02:35]}  Bc5 {[%clk 0:02:48]} 8. b4 {[%clk 0:02:24]}  Bb6 {[%clk 0:02:22]} 9. d6 {[%clk 0:02:25]}  Nc6 {[%clk 0:02:18]} 10. N1c3 {[%clk 0:01:58]}  O-O {[%clk 0:02:17]} 11. Nc7 {[%clk 0:01:31]}  Rb8 {[%clk 0:02:14]} 12. b5 {[%clk 0:01:29]}  Nd4 {[%clk 0:02:09]} 13. e3 {[%clk 0:01:19]}  Qxd6 {[%clk 0:02:07]} 14. exd4 {[%clk 0:01:06]}  Qxc7 {[%clk 0:02:05]} 15. d5 {[%clk 0:00:57]}  Bd4 {[%clk 0:02:04]} 16. Rc1 {[%clk 0:00:56]}  Qb6 {[%clk 0:02:04]} 17. Qf3 {[%clk 0:00:46]}  Bg4 {[%clk 0:02:03]} 18. Qg3 {[%clk 0:00:45]}  Rbc8 {[%clk 0:02:01]} 19. Be2 {[%clk 0:00:41]}  Bxe2 {[%clk 0:01:49]} 20. Nxe2 {[%clk 0:00:40]}  Ne4 {[%clk 0:01:43]} 21. Rxc8 {[%clk 0:00:14]}  Rxc8 {[%clk 0:01:38]} 22. Qg4 {[%clk 0:00:14]}  Bxf2+ {[%clk 0:01:17]} 23. Kd1 {[%clk 0:00:14]}  Nd6 {[%clk 0:00:55]} 24. Rf1 {[%clk 0:00:08]}  Bd4 {[%clk 0:00:50]} 25. Nxd4 {[%clk 0:00:08]}  Qxd4 {[%clk 0:00:48]} 26. Qxd4 {[%clk 0:00:08]}  exd4 {[%clk 0:00:48]} 27. a4 {[%clk 0:00:09]}  Kf8 {[%clk 0:00:47]} 28. Rf4 {[%clk 0:00:09]}  Rc4 {[%clk 0:00:45]} 29. a5 {[%clk 0:00:10]}  Nxb5 {[%clk 0:00:43]} 30. a6 {[%clk 0:00:09]}  bxa6 {[%clk 0:00:43]} 31. Rh4 {[%clk 0:00:09]}  h6 {[%clk 0:00:42]} 32. Rg4 {[%clk 0:00:09]}  Nd6 {[%clk 0:00:42]} 33. h4 {[%clk 0:00:08]}  f5 {[%clk 0:00:42]} 34. Rg6 {[%clk 0:00:07]}  Ne4 {[%clk 0:00:39]} 35. Rxa6 {[%clk 0:00:06]}  Ke7 {[%clk 0:00:37]} 36. Rxa7+ {[%clk 0:00:06]}  Kf6 {[%clk 0:00:37]} 37. Bf4 {[%clk 0:00:06]}  Nc3+ {[%clk 0:00:32]} 38. Kd2 {[%clk 0:00:06]}  Nxd5 {[%clk 0:00:32]} 39. Ra6+ {[%clk 0:00:04]}  Kf7 {[%clk 0:00:31]} 40. Be5 {[%clk 0:00:05]}  g5 {[%clk 0:00:30]} 41. h5 {[%clk 0:00:05]}  f4 {[%clk 0:00:27]} 42. Rxh6 {[%clk 0:00:04]}  Ra4 {[%clk 0:00:26]} 43. Kd3 {[%clk 0:00:04]}  Ne3 {[%clk 0:00:25]} 44. Bxd4 {[%clk 0:00:04]}  Nxg2 {[%clk 0:00:24]} 45. Rf6+ {[%clk 0:00:04]}  Ke7 {[%clk 0:00:24]} 46. Rg6 {[%clk 0:00:05]}  Ra3+ {[%clk 0:00:23]} 47. Ke4 {[%clk 0:00:05]}  Ra5 {[%clk 0:00:20]} 48. h6 {[%clk 0:00:05]}  g4 {[%clk 0:00:15]} 49. Rxg4 {[%clk 0:00:05]}  Rh5 {[%clk 0:00:14]} 50. Rxg2 {[%clk 0:00:03]}  Rxh6 {[%clk 0:00:14]} 51. Kxf4 {[%clk 0:00:04]}  Ke6 {[%clk 0:00:14]} 52. Ke4 {[%clk 0:00:04]}  Rh4+ {[%clk 0:00:14]} 53. Kd3 {[%clk 0:00:04]}  Kd5 {[%clk 0:00:13]} 54. Rg5+ {[%clk 0:00:05]}  Ke6 {[%clk 0:00:14]} 55. Kc4 {[%clk 0:00:05]}  Rf4 {[%clk 0:00:13]} 56. Rg6+ {[%clk 0:00:06]}  Kf7 {[%clk 0:00:13]} 57. Rc6 {[%clk 0:00:05]}  Ke7 {[%clk 0:00:13]} 58. Kd5 {[%clk 0:00:06]}  Rf5+ {[%clk 0:00:12]} 59. Be5 {[%clk 0:00:06]}  Rf1 {[%clk 0:00:12]} 60. Rc7+ {[%clk 0:00:07]}  Kd8 {[%clk 0:00:12]} 61. Ke6 {[%clk 0:00:07]}  Re1 {[%clk 0:00:11]} 62. Rb7 {[%clk 0:00:07]}  Kc8 {[%clk 0:00:11]} 63. Rb8# {[%clk 0:00:08]} 1-0


[Site "https://www.chess.com"]